fUSD/lending_fUSD_20241123
["ID","MTS","AMOUNT","RATE_DAILY","PERIOD"]
[343160905,1732389080907,-206.583143,0.00054884,120]
[343160906,1732389080917,-255.244836,0.00054884,120]
[343160907,1732389080926,-3695.772711,0.00054884,120]
[343160908,1732389080935,-3695.772706,0.00054884,120]
[343160909,1732389080945,-263.37149,0.00054884,120]
[343160910,1732389080954,-666862.76383501,0.00054884,120]
[343160911,1732389080963,-239.71,0.00054891,2]
[343160912,1732389080972,-227.10156115,0.00054891,120]
[343160913,1732389080986,-5000.0,0.000549,20]
[343160914,1732389080995,-227.10156115,0.00054901,120]
[343160915,1732389081004,-239.71,0.00054905,2]
[343160916,1732389081013,-227.10156115,0.00054911,120]
[343160917,1732389081023,-161.97907418,0.00054919,32]
[343160918,1732389081032,-321.09227668,0.0005492,2]
[343160919,1732389081041,-239.71,0.0005492,2]
[343160920,1732389081050,-227.10156115,0.0005492,120]
[343160921,1732389081060,-227.10156115,0.0005493,120]
[343160922,1732389081074,-239.71,0.00054934,2]
[343160923,1732389081083,-227.10156115,0.0005494,120]
[343160924,1732389081092,-150.0,0.00054944,14]
[343160925,1732389081101,-239.71,0.00054949,2]
[343160926,1732389081111,-227.10156115,0.00054949,120]
[343160927,1732389081121,-227.10156115,0.00054959,120]
[343160928,1732389081130,-239.71,0.00054963,2]
[343160929,1732389081140,-227.10156115,0.00054969,120]
[343160930,1732389081152,-150.0,0.00054976,14]
[343160931,1732389081161,-239.71,0.00054977,2]
[343160932,1732389081171,-227.10156115,0.00054979,120]
[343160933,1732389081181,-227.10156115,0.00054988,120]
[343160934,1732389081191,-500.0,0.0005499,120]
[343160935,1732389081200,-500.0,0.0005499,120]
[343160936,1732389081209,-500.0,0.0005499,120]
[343160937,1732389081219,-500.0,0.0005499,120]
[343160938,1732389081228,-500.0,0.0005499,120]
[343160939,1732389081238,-500.0,0.0005499,120]
[343160940,1732389081247,-500.0,0.0005499,120]
[343160941,1732389081257,-500.0,0.0005499,120]
[343160942,1732389081266,-500.0,0.0005499,120]
[343160943,1732389081276,-500.0,0.0005499,120]
[343160944,1732389081285,-500.0,0.0005499,120]
[343160945,1732389081295,-500.0,0.0005499,120]
[343160946,1732389081304,-500.0,0.0005499,120]
[343160947,1732389081313,-500.0,0.0005499,120]
[343160948,1732389081323,-500.0,0.0005499,120]
[343160949,1732389081333,-500.0,0.0005499,120]
[343160950,1732389081343,-500.0,0.0005499,120]
[343160951,1732389081352,-500.0,0.0005499,120]
[343160952,1732389081361,-500.0,0.0005499,120]
[343160953,1732389081370,-500.0,0.0005499,120]
[343160954,1732389081380,-500.0,0.0005499,120]
[343160955,1732389081389,-500.0,0.0005499,120]
[343160956,1732389081401,-500.0,0.0005499,120]
[343160957,1732389081411,-500.0,0.0005499,120]
[343160958,1732389081420,-500.0,0.0005499,120]
[343160959,1732389081430,-500.0,0.0005499,120]
[343160960,1732389081439,-500.0,0.0005499,120]
[343160961,1732389081449,-500.0,0.0005499,120]
[343160962,1732389081458,-500.0,0.0005499,120]
[343160963,1732389081468,-500.0,0.0005499,120]
[343160964,1732389081478,-500.0,0.0005499,120]
[343160965,1732389081593,-500.0,0.0005499,120]
[343160966,1732389081604,-500.0,0.0005499,120]
[343160967,1732389081613,-500.0,0.0005499,120]
[343160968,1732389081623,-500.0,0.0005499,120]
[343160969,1732389081632,-500.0,0.0005499,120]
[343160970,1732389081643,-500.0,0.0005499,120]
[343160971,1732389081652,-500.0,0.0005499,120]
[343160972,1732389081662,-500.0,0.0005499,120]
[343160973,1732389081671,-500.0,0.0005499,120]
[343160974,1732389081681,-500.0,0.0005499,120]
[343160975,1732389081690,-500.0,0.0005499,120]
[343160976,1732389081699,-500.0,0.0005499,120]
[343160977,1732389081710,-500.0,0.0005499,120]
[343160978,1732389081719,-500.0,0.0005499,120]
[343160979,1732389081728,-500.0,0.0005499,120]
[343160980,1732389081737,-500.0,0.0005499,120]
[343160981,1732389081747,-500.0,0.0005499,120]
[343160982,1732389081756,-500.0,0.0005499,120]
[343160983,1732389081765,-500.0,0.0005499,120]
[343160984,1732389081774,-500.0,0.0005499,120]
[343160985,1732389081784,-500.0,0.0005499,120]
[343160986,1732389081793,-500.0,0.0005499,120]
[343160987,1732389081803,-500.0,0.0005499,120]
[343160988,1732389081812,-500.0,0.0005499,120]
[343160989,1732389081822,-500.0,0.0005499,120]
[343160990,1732389081831,-500.0,0.0005499,120]
[343160991,1732389081841,-500.0,0.0005499,120]
[343160992,1732389081851,-500.0,0.0005499,120]
[343160993,1732389081860,-500.0,0.0005499,120]
[343160994,1732389081870,-500.0,0.0005499,120]
[343160995,1732389081879,-500.0,0.0005499,120]
[343160996,1732389081898,-500.0,0.0005499,120]
[343160997,1732389081908,-500.0,0.0005499,120]
[343160998,1732389081918,-500.0,0.0005499,120]
[343160999,1732389081927,-500.0,0.0005499,120]
[343161000,1732389081936,-500.0,0.0005499,120]
[343161001,1732389081946,-500.0,0.0005499,120]
[343161002,1732389081956,-500.0,0.0005499,120]
[343161003,1732389081965,-500.0,0.0005499,120]
[343161004,1732389081975,-500.0,0.0005499,120]
[343161005,1732389081984,-500.0,0.0005499,120]
[343161006,1732389081996,-500.0,0.0005499,120]
[343161007,1732389082006,-500.0,0.0005499,120]
[343161008,1732389082015,-500.0,0.0005499,120]
[343161009,1732389082025,-500.0,0.0005499,120]
[343161010,1732389082035,-500.0,0.0005499,120]
[343161011,1732389082045,-500.0,0.0005499,120]
[343161012,1732389082054,-500.0,0.0005499,120]
[343161013,1732389082064,-500.0,0.0005499,120]
[343161014,1732389082074,-500.0,0.0005499,120]
[343161015,1732389082085,-500.0,0.0005499,120]
[343161016,1732389082095,-500.0,0.0005499,120]
[343161017,1732389082105,-500.0,0.0005499,120]
[343161018,1732389082114,-500.0,0.0005499,120]
[343161019,1732389082124,-500.0,0.0005499,120]
[343161020,1732389082134,-500.0,0.0005499,120]
[343161021,1732389082145,-500.0,0.0005499,120]
[343161022,1732389082158,-500.0,0.0005499,120]
[343161023,1732389082168,-500.0,0.0005499,120]
[343161024,1732389082179,-500.0,0.0005499,120]
[343161025,1732389082189,-500.0,0.0005499,120]
[343161026,1732389082199,-500.0,0.0005499,120]
[343161027,1732389082210,-500.0,0.0005499,120]
[343161028,1732389082221,-500.0,0.0005499,120]
[343161029,1732389082232,-290.33,0.0005499,120]
[343161030,1732389082242,-399.35,0.0005499,120]
[343161031,1732389082253,-467.445494,0.0005499,120]
[343161032,1732389082263,-500.0,0.0005499,120]
[343161033,1732389082274,-467.445494,0.0005499,120]
[343161034,1732389082285,-151.0,0.0005499,120]
[343161035,1732389082296,-151.0,0.0005499,120]
[343161036,1732389082307,-169.15571,0.0005499,120]
[343161037,1732389082318,-169.15571,0.0005499,120]
[343161038,1732389082329,-151.0,0.0005499,120]
[343161039,1732389082340,-240.625105,0.0005499,120]
[343161040,1732389082351,-240.625105,0.0005499,120]
[343161041,1732389082362,-151.0,0.0005499,120]
[343161042,1732389082373,-151.0,0.0005499,120]
[343161043,1732389082384,-151.0,0.0005499,120]
[343161044,1732389082400,-151.0,0.0005499,120]
[343161045,1732389082410,-239.71,0.00054992,2]
[343161046,1732389082421,-1634.99,0.00054997,120]
[343161047,1732389082432,-537.82,0.00054997,120]
[343161048,1732389082443,-1393.51,0.00054997,120]
[343161049,1732389082455,-500.0,0.00054997,120]
[343161050,1732389082466,-1207.56,0.00054997,120]
[343161051,1732389082477,-635.57,0.00054997,120]
[343161052,1732389082488,-1401.78,0.00054997,120]
[343161053,1732389082516,-516.53,0.00054997,120]
[343161054,1732389082538,-500.0,0.00054997,120]
[343161055,1732389082560,-840.91,0.00054997,120]
[343161056,1732389082582,-227.10156115,0.00054998,120]
[343161057,1732389082605,-500.0,0.00054998,120]
[343161058,1732389082624,-1572.78,0.00054998,120]
[343161059,1732389082648,-500.0,0.00054998,120]
[343161060,1732389082670,-938.06,0.00054998,120]
[343161061,1732389082692,-500.0,0.00054998,120]
[343161062,1732389082711,-504.66,0.00054998,120]
[343161063,1732389082733,-500.0,0.00054998,120]
[343161064,1732389082749,-500.0,0.00054998,21]
[343161065,1732389082767,-1000.0,0.00054998,120]
[343161066,1732389082783,-503.12,0.00054998,120]
[343161067,1732389082802,-500.0,0.00054998,120]
[343161068,1732389082817,-500.0,0.00054998,120]
[343161069,1732389082835,-500.0,0.00054998,120]
[343161070,1732389082852,-500.0,0.00054998,120]
[343161071,1732389082869,-500.0,0.00054998,120]
[343161072,1732389082885,-500.0,0.00054998,120]
[343161073,1732389082902,-781.19,0.00054998,120]
[343161074,1732389082918,-1494.48,0.00054998,120]
[343161075,1732389082934,-500.0,0.00054998,120]
[343161076,1732389082950,-687.21,0.00054998,120]
[343161077,1732389082966,-500.0,0.00054998,120]
[343161078,1732389082982,-500.0,0.00054998,120]
[343161079,1732389082999,-500.0,0.00054998,120]
[343161080,1732389083015,-500.0,0.00054999,120]
[343161081,1732389083031,-500.0,0.00054999,120]
[343161082,1732389083046,-500.0,0.00054999,120]
[343161083,1732389083061,-500.0,0.00054999,120]
[343161084,1732389083076,-500.0,0.00054999,120]
[343161085,1732389083093,-500.0,0.00054999,120]
[343161086,1732389083107,-500.0,0.00054999,120]
[343161087,1732389083122,-500.0,0.00054999,120]
[343161088,1732389083135,-617.97780687,0.00054999,120]
[343161089,1732389083150,-500.0,0.00054999,120]
[343161090,1732389083165,-230.76,0.00054999,120]
[343161091,1732389083178,-349.06,0.00054999,7]
[343161092,1732389083192,-627.44,0.00054999,120]
[343161093,1732389083206,-500.0,0.00054999,120]
[343161094,1732389083220,-500.0,0.00054999,120]
[343161095,1732389083234,-500.0,0.00054999,120]
[343161096,1732389083248,-500.0,0.00054999,120]
[343161097,1732389083263,-475.37053374,0.00054999,120]
[343161098,1732389083278,-500.0,0.00054999,120]
[343161099,1732389083292,-500.0,0.00054999,120]
[343161100,1732389083305,-500.0,0.00054999,120]
[343161101,1732389083319,-500.0,0.00054999,120]
[343161102,1732389083333,-500.0,0.00054999,120]
[343161103,1732389083347,-500.0,0.00054999,120]
[343161104,1732389083361,-500.0,0.00054999,120]
[343161105,1732389083375,-520.59,0.00054999,120]
[343161106,1732389083388,-500.0,0.00054999,120]
[343161107,1732389083404,-500.0,0.00054999,120]
[343161108,1732389083418,-500.0,0.00054999,120]
[343161109,1732389083432,-500.0,0.00054999,120]
[343161110,1732389083448,-500.0,0.00054999,120]
[343161111,1732389083461,-500.0,0.00054999,120]
[343161112,1732389083475,-500.0,0.00054999,120]
[343161113,1732389083490,-500.0,0.00054999,120]
[343161114,1732389083504,-500.0,0.00054999,120]
[343161115,1732389083519,-500.0,0.00054999,120]
[343161116,1732389083533,-500.0,0.00054999,120]
[343161117,1732389083547,-500.0,0.00054999,120]
[343161118,1732389083561,-500.0,0.00054999,120]
[343161119,1732389083576,-582.44,0.00054999,120]
[343161120,1732389083591,-500.0,0.00054999,120]
[343161121,1732389083605,-582.44,0.00054999,120]
[343161122,1732389083620,-500.0,0.00054999,120]
[343161123,1732389083634,-500.0,0.00054999,120]
[343161124,1732389083651,-582.44,0.00054999,120]
[343161125,1732389083667,-582.44,0.00054999,120]
[343161126,1732389083681,-500.0,0.00054999,120]
[343161127,1732389083696,-500.0,0.00054999,120]
[343161128,1732389083711,-500.0,0.00054999,120]
[343161129,1732389083725,-500.0,0.00054999,120]
[343161130,1732389083740,-881.69,0.00054999,120]
[343161131,1732389083755,-881.69,0.00054999,120]
[343161132,1732389083769,-881.69,0.00054999,120]
[343161133,1732389083783,-881.69,0.00054999,120]
[343161134,1732389083799,-500.0,0.00054999,120]
[343161135,1732389083813,-500.0,0.00054999,120]
[343161136,1732389083829,-500.0,0.00054999,120]
[343161137,1732389083843,-500.0,0.00054999,120]
[343161138,1732389083858,-563.31,0.00054999,120]
[343161139,1732389083873,-563.31,0.00054999,120]
[343161140,1732389083887,-563.31,0.00054999,120]
[343161141,1732389083904,-563.31,0.00054999,120]
[343161142,1732389084109,-500.0,0.00054999,120]
[343161143,1732389084126,-500.0,0.00054999,120]
[343161144,1732389084136,-500.0,0.00054999,120]
[343161145,1732389084148,-500.0,0.00054999,120]
[343161146,1732389084158,-500.0,0.00054999,120]
[343161147,1732389084168,-570.26,0.00054999,120]
[343161148,1732389084178,-500.0,0.00054999,120]
[343161149,1732389084188,-500.0,0.00054999,120]
[343161150,1732389084198,-233.31979191,0.00054999,120]
[343161151,1732389084208,-828.16,0.00054999,120]
[343161152,1732389084218,-828.16,0.00054999,120]
[343161153,1732389084228,-828.16,0.00054999,120]
[343161154,1732389084237,-500.0,0.00054999,120]
[343161155,1732389084247,-828.16,0.00054999,120]
[343161156,1732389084256,-500.0,0.00054999,120]
[343161157,1732389084265,-500.0,0.00054999,120]
[343161158,1732389084274,-500.0,0.00054999,120]
[343161159,1732389084284,-594.44304656,0.00054999,120]
[343161160,1732389084293,-500.0,0.00054999,120]
[343161161,1732389084304,-500.0,0.00054999,120]
[343161162,1732389084314,-500.0,0.00054999,120]
[343161163,1732389084324,-415.55,0.00054999,120]
[343161164,1732389084334,-556.16,0.00054999,120]
[343161165,1732389084344,-561.44419415,0.00054999,120]
[343161166,1732389084354,-500.0,0.00054999,120]
[343161167,1732389084364,-500.0,0.00054999,120]
[343161168,1732389084374,-500.0,0.00054999,120]
[343161169,1732389084384,-500.0,0.00054999,120]
[343161170,1732389084395,-500.0,0.00054999,120]
[343161171,1732389084407,-500.0,0.00054999,120]
[343161172,1732389084417,-500.0,0.00054999,120]
[343161173,1732389084429,-500.0,0.00054999,120]
[343161174,1732389084438,-151.0,0.00054999,120]
[343161175,1732389084449,-151.0,0.00054999,120]
[343161176,1732389084460,-500.0,0.00054999,120]
[343161177,1732389084469,-500.0,0.00054999,120]
[343161178,1732389084479,-500.0,0.00054999,120]
[343161179,1732389084489,-500.0,0.00054999,120]
[343161180,1732389084499,-151.0,0.00054999,120]
[343161181,1732389084509,-151.0,0.00054999,120]
[343161182,1732389084519,-500.0,0.00054999,120]
[343161183,1732389084528,-500.0,0.00054999,120]
[343161184,1732389084538,-500.0,0.00054999,120]
[343161185,1732389084548,-500.0,0.00054999,120]
[343161186,1732389084558,-151.0,0.00054999,120]
[343161187,1732389084567,-500.0,0.00054999,120]
[343161188,1732389084577,-523.91581364,0.00054999,120]
[343161189,1732389084586,-151.0,0.00054999,120]
[343161190,1732389084596,-813.605447,0.00054999,120]
[343161191,1732389084604,-332.281826,0.00054999,120]
[343161192,1732389084615,-813.605447,0.00054999,120]
[343161193,1732389084625,-332.281826,0.00054999,120]
[343161194,1732389084634,-771.94,0.00054999,120]
[343161195,1732389084643,-771.94,0.00054999,120]
[343161196,1732389084657,-771.94,0.00054999,120]
[343161197,1732389084667,-771.94,0.00054999,120]
[343161198,1732389084677,-1000.0,0.00054999,30]
[343161199,1732389084687,-500.0,0.00054999,120]
[343161200,1732389084696,-538.68881384,0.00054999,120]
[343161201,1732389084705,-1097.97,0.00054999,120]
[343161202,1732389084715,-1097.97,0.00054999,120]
[343161203,1732389084724,-1097.97,0.00054999,120]
[343161204,1732389084734,-1097.97,0.00054999,120]
[343161205,1732389084743,-500.0,0.00054999,120]
[343161206,1732389084753,-500.0,0.00054999,120]
[343161207,1732389084762,-500.0,0.00054999,120]
[343161208,1732389084772,-500.0,0.00054999,120]
[343161209,1732389084782,-500.0,0.00054999,120]
[343161210,1732389084791,-500.0,0.00054999,120]
[343161211,1732389084801,-500.0,0.00054999,120]
[343161212,1732389084810,-500.0,0.00054999,120]
[343161213,1732389084820,-9575.00796256,0.00055,120]
[343161214,1732389084830,-2000.0,0.00055,120]
[343161215,1732389084839,-151.0,0.00055,120]
[343161216,1732389084849,-151.0,0.00055,120]
[343161217,1732389084858,-229.043883,0.00055,120]
[343161218,1732389084868,-229.043883,0.00055,120]
[343161219,1732389084878,-202.70913,0.00055,120]
[343161220,1732389084888,-202.70913,0.00055,120]
[343161221,1732389084899,-327.981952,0.00055,120]
[343161222,1732389084909,-327.981952,0.00055,120]
[343161223,1732389084919,-239.71,0.00055006,2]
[343161224,1732389084929,-227.10156115,0.00055008,120]
[343161225,1732389084938,-227.10156115,0.00055017,120]
[343161226,1732389084948,-227.10156115,0.00055027,120]
[343161227,1732389084958,-150.0,0.00055028,14]
[343161228,1732389084968,-150.0,0.00055033,14]
[343161229,1732389084978,-227.10156115,0.00055037,120]
[343161230,1732389084987,-227.10156115,0.00055046,120]
[343161231,1732389084998,-227.10156115,0.00055056,120]
[343161232,1732389085008,-227.10156115,0.00055066,120]
[343161233,1732389085018,-150.0,0.00055069,14]
[343161234,1732389085027,-227.10156115,0.00055075,120]
[343161235,1732389085038,-227.10156115,0.00055085,120]
[343161236,1732389085047,-150.0,0.00055087,14]
[343161237,1732389085056,-150.0,0.0005509,14]
[343161238,1732389085067,-150.0,0.00055094,14]
[343161239,1732389085077,-227.10156115,0.00055095,120]
[343161240,1732389085087,-227.10156115,0.00055104,120]
[343161241,1732389085096,-321.09227668,0.00055114,2]
[343161242,1732389085106,-227.10156115,0.00055114,120]
[343161243,1732389085117,-150.0,0.00055115,14]
[343161244,1732389085127,-227.10156115,0.00055124,120]
[343161245,1732389085136,-150.0,0.00055132,14]
[343161246,1732389085148,-227.10156115,0.00055134,120]
[343161247,1732389085159,-2805.29101,0.0005514,73]
[343161248,1732389085169,-227.10156115,0.00055143,120]
[343161249,1732389085179,-227.10156115,0.00055153,120]
[343161250,1732389085190,-150.0,0.00055157,14]
[343161251,1732389085200,-150.0,0.00055158,14]
[343161252,1732389085209,-227.10156115,0.00055163,120]
[343161253,1732389085219,-227.10156115,0.00055172,120]
[343161254,1732389085229,-227.10156115,0.00055182,120]
[343161255,1732389085239,-150.0,0.00055187,14]
[343161256,1732389085249,-227.10156115,0.00055192,120]
[343161257,1732389085259,-500.0,0.00055199,120]
[343161258,1732389085269,-500.0,0.00055199,120]
[343161259,1732389085279,-500.0,0.00055199,120]
[343161260,1732389085289,-500.0,0.00055199,120]
[343161261,1732389085299,-500.0,0.00055199,120]
[343161262,1732389085309,-500.0,0.00055199,120]
[343161263,1732389085319,-500.0,0.00055199,120]
[343161264,1732389085330,-500.0,0.00055199,120]
[343161265,1732389085340,-500.0,0.00055199,120]
[343161266,1732389085350,-500.0,0.00055199,120]
[343161267,1732389085360,-500.0,0.00055199,120]
[343161268,1732389085370,-500.0,0.00055199,120]
[343161269,1732389085380,-500.0,0.00055199,120]
[343161270,1732389085390,-152.64,0.00055199,120]
[343161271,1732389085401,-500.0,0.00055199,120]
[343161272,1732389085410,-500.0,0.00055199,120]
[343161273,1732389085420,-500.0,0.00055199,120]
[343161274,1732389085429,-500.0,0.00055199,120]
[343161275,1732389085439,-500.0,0.00055199,120]
[343161276,1732389085448,-500.0,0.00055199,120]
[343161277,1732389085458,-500.0,0.00055199,120]
[343161278,1732389085468,-500.0,0.00055199,120]
[343161279,1732389085478,-500.0,0.00055199,120]
[343161280,1732389085487,-521.44830177,0.00055199,120]
[343161281,1732389085496,-656.31,0.00055199,120]
[343161282,1732389085505,-500.0,0.00055199,120]
[343161283,1732389085515,-644.06006264,0.00055199,120]
[343161284,1732389085524,-168.0,0.00055199,120]
[343161285,1732389085534,-156.77,0.00055199,120]
[343161286,1732389085544,-500.0,0.00055199,120]
[343161287,1732389085553,-500.0,0.00055199,120]
[343161288,1732389085563,-577.44,0.00055199,120]
[343161289,1732389085572,-500.0,0.00055199,120]
[343161290,1732389085582,-500.0,0.00055199,120]
[343161291,1732389085591,-483.794845,0.00055199,120]
[343161292,1732389085601,-500.0,0.00055199,120]
[343161293,1732389085610,-609.3,0.00055199,120]
[343161294,1732389085621,-500.0,0.00055199,120]
[343161295,1732389085631,-392.84,0.00055199,120]
[343161296,1732389085640,-500.0,0.00055199,120]
[343161297,1732389085651,-1324.03,0.00055199,120]
[343161298,1732389085661,-1200.79,0.00055199,120]
[343161299,1732389085671,-500.0,0.00055199,120]
[343161300,1732389085681,-500.0,0.00055199,120]
[343161301,1732389085690,-500.0,0.00055199,120]
[343161302,1732389085700,-500.0,0.00055199,120]
[343161303,1732389085710,-500.0,0.00055199,120]
[343161304,1732389085720,-500.0,0.00055199,120]
[343161305,1732389085730,-500.0,0.00055199,120]
[343161306,1732389085740,-435.26,0.00055199,120]
[343161307,1732389085750,-1803.76,0.00055199,120]
[343161308,1732389085759,-1486.62,0.00055199,120]
[343161309,1732389085769,-500.0,0.00055199,120]
[343161310,1732389085778,-290.76,0.00055199,120]
[343161311,1732389085787,-1278.68,0.00055199,120]
[343161312,1732389085796,-500.0,0.00055199,120]
[343161313,1732389085806,-271.41,0.00055199,120]
[343161314,1732389085815,-1227.87,0.00055199,120]
[343161315,1732389085825,-500.0,0.00055199,120]
[343161316,1732389085834,-1339.52,0.00055199,120]
[343161317,1732389085843,-500.0,0.00055199,120]
[343161318,1732389085853,-500.0,0.00055199,7]
[343161319,1732389085863,-500.0,0.00055199,54]
[343161320,1732389085873,-363.22,0.00055199,120]
[343161321,1732389085882,-500.0,0.00055199,120]
[343161322,1732389085891,-564.84,0.00055199,120]
[343161323,1732389085903,-1360.17,0.00055199,120]
[343161324,1732389085914,-500.0,0.00055199,120]
[343161325,1732389085924,-546.06,0.00055199,120]
[343161326,1732389085934,-500.0,0.00055199,120]
[343161327,1732389085943,-500.0,0.00055199,120]
[343161328,1732389085952,-500.0,0.00055199,120]
[343161329,1732389085961,-500.0,0.00055199,120]
[343161330,1732389085971,-500.0,0.00055199,120]
[343161331,1732389085983,-500.0,0.00055199,120]
[343161332,1732389085993,-500.0,0.00055199,120]
[343161333,1732389086006,-762.84,0.00055199,120]
[343161334,1732389086016,-1009.83,0.00055199,120]
[343161335,1732389086027,-500.0,0.00055199,120]
[343161336,1732389086038,-500.0,0.00055199,120]
[343161337,1732389086047,-500.0,0.00055199,120]
[343161338,1732389086057,-500.0,0.00055199,120]
[343161339,1732389086068,-500.0,0.00055199,120]
[343161340,1732389086080,-500.0,0.00055199,120]
[343161341,1732389086090,-500.0,0.00055199,120]
[343161342,1732389086100,-500.0,0.00055199,120]
[343161343,1732389086109,-500.0,0.00055199,120]
[343161344,1732389086120,-836.17,0.00055199,120]
[343161345,1732389086130,-500.0,0.00055199,120]
[343161346,1732389086141,-500.0,0.00055199,120]
[343161347,1732389086152,-205.2,0.00055199,120]
[343161348,1732389086161,-1293.77,0.00055199,120]
[343161349,1732389086171,-500.0,0.00055199,120]
[343161350,1732389086180,-500.0,0.00055199,120]
[343161351,1732389086190,-224.15,0.00055199,120]
[343161352,1732389086199,-322.48,0.00055199,120]
[343161353,1732389086210,-490.96,0.00055199,120]
[343161354,1732389086220,-500.0,0.00055199,120]
[343161355,1732389086230,-500.0,0.00055199,120]
[343161356,1732389086240,-252.48941632,0.00055199,120]
[343161357,1732389086250,-500.0,0.00055199,120]
[343161358,1732389086260,-500.0,0.00055199,120]
[343161359,1732389086270,-321.61599999,0.00055199,120]
[343161360,1732389086280,-500.0,0.00055199,120]
[343161361,1732389086290,-530.18,0.00055199,120]
[343161362,1732389086299,-255.244836,0.00055199,120]
[343161363,1732389086309,-500.0,0.00055199,120]
[343161364,1732389086319,-500.0,0.00055199,30]
[343161365,1732389086329,-255.244833,0.00055199,120]
[343161366,1732389086338,-500.0,0.00055199,120]
[343161367,1732389086348,-500.0,0.00055199,120]
[343161368,1732389086358,-269.96278463,0.00055199,120]
[343161369,1732389086367,-500.0,0.00055199,120]
[343161370,1732389086377,-500.0,0.00055199,120]
[343161371,1732389086387,-515.45046982,0.00055199,120]
[343161372,1732389086397,-427.18,0.00055199,120]
[343161373,1732389086533,-227.10156115,0.00055201,120]
[343161374,1732389086547,-150.0,0.00055203,14]
[343161375,1732389086557,-150.0,0.00055205,14]
[343161376,1732389086567,-227.10156115,0.00055211,120]
[343161377,1732389086577,-2831.67330623,0.0005522,2]
[343161378,1732389086587,-151.0,0.0005522,120]
[343161379,1732389086597,-151.0,0.0005522,120]
[343161380,1732389086607,-151.0,0.0005522,120]
[343161381,1732389086616,-218.633121,0.0005522,110]
[343161382,1732389086626,-218.633121,0.0005522,110]
[343161383,1732389086636,-289.307561,0.0005522,120]
[343161384,1732389086645,-289.307561,0.0005522,120]
[343161385,1732389086657,-417.95,0.0005522,7]
[343161386,1732389086667,-417.95,0.0005522,7]
[343161387,1732389086677,-751.826053,0.0005522,120]
[343161388,1732389086686,-751.826053,0.0005522,120]
[343161389,1732389086696,-151.0,0.0005522,120]
[343161390,1732389086706,-151.0,0.0005522,7]
[343161391,1732389086717,-1131.829652,0.0005522,120]
[343161392,1732389086726,-1131.829652,0.0005522,120]
[343161393,1732389086735,-206.583143,0.0005522,120]
[343161394,1732389086744,-206.583143,0.0005522,120]
[343161395,1732389086755,-227.10156115,0.00055221,120]
[343161396,1732389086765,-150.0,0.00055221,14]
[343161397,1732389086775,-150.0,0.00055224,14]
[343161398,1732389086785,-227.10156115,0.0005523,120]
[343161399,1732389086794,-150.0,0.00055231,14]
[343161400,1732389086803,-150.0,0.00055231,14]
[343161401,1732389086813,-150.0,0.00055237,30]
[343161402,1732389086823,-227.10156115,0.0005524,120]
[343161403,1732389086833,-161.97907418,0.00055243,33]
[343161404,1732389086842,-227.10156115,0.0005525,120]